fUST/lending_fUST_20240918
["ID","MTS","AMOUNT","RATE_DAILY","PERIOD"]
[338431855,1726633854132,-151.0,0.000192,2]
[338431856,1726633854141,-221.740558,0.000192,2]
[338431857,1726633854151,-221.740558,0.000192,2]
[338431858,1726633854164,-151.597584,0.000192,2]
[338431859,1726633854173,-151.0,0.000192,2]
[338431860,1726633854182,-242.731929,0.000192,2]
[338431861,1726633854194,-151.597584,0.000192,2]
[338431862,1726633854205,-151.0,0.000192,2]
[338431863,1726633854215,-150.112233,0.000193,2]
[338431864,1726633854226,-150.112233,0.000193,2]
[338431865,1726633854237,-150.112233,0.000193,2]
[338431866,1726633854248,-420.0,0.00019305,2]
[338431867,1726633854257,-1894.25064131,0.00019336,2]
[338431868,1726633854267,-150.112233,0.000194,2]
[338431869,1726633854278,-150.112233,0.000194,2]
[338431870,1726633854288,-150.112233,0.000194,2]
[338431871,1726633854300,-305.76112347,0.0001945,2]
[338431872,1726633854310,-150.42758016,0.00019451,2]
[338431873,1726633854320,-6951.29109006,0.00019451,2]
[338431874,1726633854331,-2930.24233511,0.00019452,5]
[338431875,1726633854343,-500.0,0.00019452,2]
[338431876,1726633854352,-1000.0,0.00019452,2]
[338431877,1726633854363,-500.0,0.00019452,2]
[338431878,1726633854374,-500.0,0.00019452,2]
[338431879,1726633854383,-500.0,0.00019452,2]
[338431880,1726633854394,-500.0,0.00019452,2]
[338431881,1726633854405,-500.0,0.00019452,2]
[338431882,1726633854415,-151.0,0.00019452,2]
[338431883,1726633854426,-500.0,0.00019452,2]
[338431884,1726633854439,-547.8,0.00019452,2]
[338431885,1726633854448,-500.0,0.00019452,2]
[338431886,1726633854459,-500.0,0.00019452,2]
[338431887,1726633854469,-500.0,0.00019452,2]
[338431888,1726633854480,-500.0,0.00019452,2]
[338431889,1726633854489,-513.63778498,0.00019452,2]
[338431890,1726633854501,-500.0,0.00019452,2]
[338431891,1726633854511,-500.0,0.00019452,2]
[338431892,1726633854521,-500.0,0.00019452,2]
[338431893,1726633854532,-500.0,0.00019452,2]
[338431894,1726633854542,-560.7,0.00019452,2]
[338431895,1726633854552,-500.0,0.00019452,2]
[338431896,1726633854564,-500.0,0.00019452,2]
[338431897,1726633854574,-500.0,0.00019452,2]
[338431898,1726633854585,-500.0,0.00019452,2]
[338431899,1726633854596,-1227.09,0.00019452,2]
[338431900,1726633854607,-500.0,0.00019452,2]
[338431901,1726633854619,-500.0,0.00019452,2]
[338431902,1726633854629,-500.0,0.00019452,2]
[338431903,1726633854640,-151.0,0.00019452,2]
[338431904,1726633854651,-151.0,0.00019452,2]
[338431905,1726633854662,-1985.63,0.00019452,2]
[338431906,1726633854672,-151.0,0.00019452,2]
[338431907,1726633854684,-500.0,0.00019452,2]
[338431908,1726633854695,-500.0,0.00019452,2]
[338431909,1726633854705,-500.0,0.00019452,2]
[338431910,1726633854715,-959.53,0.00019452,2]
[338431911,1726633854725,-500.0,0.00019452,2]
[338431912,1726633854736,-500.0,0.00019452,2]
[338431913,1726633854748,-500.0,0.00019452,2]
[338431914,1726633854758,-506.85,0.00019452,2]
[338431915,1726633854768,-3032.14,0.00019452,2]
[338431916,1726633854779,-500.0,0.00019452,2]
[338431917,1726633854790,-1982.38,0.00019452,2]
[338431918,1726633854800,-507.05187652,0.00019452,2]
[338431919,1726633854810,-500.0,0.00019452,2]
[338431920,1726633854821,-500.0,0.00019452,2]
[338431921,1726633854831,-500.0,0.00019452,2]
[338431922,1726633854841,-500.0,0.00019452,2]
[338431923,1726633854852,-501.7,0.00019452,2]
[338431924,1726633854861,-500.0,0.00019452,2]
[338431925,1726633854873,-500.0,0.00019452,2]
[338431926,1726633854883,-500.0,0.00019452,2]
[338431927,1726633854894,-500.0,0.00019452,2]
[338431928,1726633854905,-500.0,0.00019452,2]
[338431929,1726633854916,-2200.47,0.00019452,2]
[338431930,1726633854927,-1957.33,0.00019452,2]
[338431931,1726633854938,-500.0,0.00019452,2]
[338431932,1726633854948,-500.0,0.00019452,2]
[338431933,1726633854959,-500.0,0.00019452,2]
[338431934,1726633854970,-151.0,0.00019452,2]
[338431935,1726633854983,-151.0,0.00019452,2]
[338431936,1726633854994,-503.8,0.00019452,2]
[338431937,1726633855004,-151.0,0.00019452,2]
[338431938,1726633855014,-151.0,0.00019452,2]
[338431939,1726633855025,-500.0,0.00019452,2]
[338431940,1726633855035,-573.86,0.00019452,2]
[338431941,1726633855046,-1058.44,0.00019452,2]
[338431942,1726633855056,-500.0,0.00019452,2]
[338431943,1726633855067,-500.0,0.00019452,2]
[338431944,1726633855078,-500.0,0.00019452,2]
[338431945,1726633855089,-445.39235273,0.00019452,2]
[338431946,1726633855099,-1086.16,0.00019452,2]
[338431947,1726633855109,-496.18891021,0.00019452,2]
[338431948,1726633855120,-500.0,0.00019452,2]
[338431949,1726633855130,-500.0,0.00019452,2]
[338431950,1726633855142,-500.0,0.00019452,2]
[338431951,1726633855153,-500.0,0.00019452,2]
[338431952,1726633855168,-500.0,0.00019452,2]
[338431953,1726633855180,-500.0,0.00019452,2]
[338431954,1726633855190,-565.2,0.00019452,2]
[338431955,1726633855202,-500.0,0.00019452,2]
[338431956,1726633855211,-581.91535978,0.00019452,2]
[338431957,1726633855220,-500.0,0.00019452,2]
[338431958,1726633855230,-566.01,0.00019452,2]
[338431959,1726633855241,-500.0,0.00019452,2]
[338431960,1726633855251,-500.0,0.00019452,2]
[338431961,1726633855261,-500.0,0.00019452,2]
[338431962,1726633855271,-500.0,0.00019452,2]
[338431963,1726633855281,-863.42,0.00019452,2]
[338431964,1726633855293,-500.0,0.00019452,2]
[338431965,1726633855303,-500.0,0.00019452,2]
[338431966,1726633855313,-577.05,0.00019452,2]
[338431967,1726633855325,-500.0,0.00019452,2]
[338431968,1726633855335,-500.0,0.00019452,2]
[338431969,1726633855346,-500.0,0.00019452,2]
[338431970,1726633855355,-857.26,0.00019452,2]
[338431971,1726633855366,-500.0,0.00019452,2]
[338431972,1726633855375,-637.39,0.00019452,2]
[338431973,1726633855386,-500.0,0.00019452,2]
[338431974,1726633855395,-1513.32,0.00019452,2]
[338431975,1726633855405,-500.0,0.00019452,2]
[338431976,1726633855414,-582.14499176,0.00019452,2]
[338431977,1726633855425,-500.0,0.00019452,2]
[338431978,1726633855435,-1583.05,0.00019452,2]
[338431979,1726633855446,-1823.48,0.00019452,2]
[338431980,1726633855458,-500.0,0.00019452,2]
[338431981,1726633855468,-500.0,0.00019452,2]
[338431982,1726633855478,-716.71,0.00019452,2]
[338431983,1726633855487,-500.0,0.00019452,2]
[338431984,1726633855497,-500.0,0.00019452,2]
[338431985,1726633855507,-659.3,0.00019452,2]
[338431986,1726633855518,-500.0,0.00019452,2]
[338431987,1726633855529,-500.0,0.00019452,2]
[338431988,1726633855541,-739.39,0.00019452,2]
[338431989,1726633855552,-531.97,0.00019452,2]
[338431990,1726633855563,-1206.65,0.00019452,2]
[338431991,1726633855574,-500.0,0.00019452,2]
[338431992,1726633855585,-500.0,0.00019452,2]
[338431993,1726633855595,-500.0,0.00019452,2]
[338431994,1726633855608,-675.17,0.00019452,2]
[338431995,1726633855621,-1043.4,0.00019452,2]
[338431996,1726633855633,-500.0,0.00019452,2]
[338431997,1726633855644,-1518.19,0.00019452,2]
[338431998,1726633855655,-2622.57,0.00019452,2]
[338431999,1726633855666,-533.71,0.00019452,2]
[338432000,1726633855676,-226.80605328,0.00019452,2]
[338432001,1726633855816,-500.0,0.00019452,2]
[338432002,1726633855826,-500.0,0.00019452,2]
[338432003,1726633855836,-822.31,0.00019452,2]
[338432004,1726633855847,-500.0,0.00019452,2]
[338432005,1726633855858,-500.0,0.00019452,2]
[338432006,1726633855869,-500.0,0.00019452,2]
[338432007,1726633855879,-1746.98,0.00019452,2]
[338432008,1726633855888,-596.52,0.00019452,2]
[338432009,1726633855899,-500.0,0.00019452,2]
[338432010,1726633855910,-1199.97,0.00019452,2]
[338432011,1726633855921,-500.0,0.00019452,2]
[338432012,1726633855932,-1206.93,0.00019452,2]
[338432013,1726633855943,-2097.29,0.00019452,2]
[338432014,1726633855956,-500.0,0.00019452,2]
[338432015,1726633855966,-1489.73,0.00019452,2]
[338432016,1726633855977,-500.0,0.00019452,2]
[338432017,1726633855986,-500.0,0.00019452,2]
[338432018,1726633855997,-673.9,0.00019452,2]
[338432019,1726633856009,-500.0,0.00019452,2]
[338432020,1726633856019,-500.0,0.00019452,2]
[338432021,1726633856031,-500.0,0.00019452,2]
[338432022,1726633856042,-647.37,0.00019452,2]
[338432023,1726633856052,-624.38,0.00019452,2]
[338432024,1726633856063,-767.79,0.00019452,2]
[338432025,1726633856074,-500.0,0.00019452,2]
[338432026,1726633856086,-500.0,0.00019452,2]
[338432027,1726633856095,-500.0,0.00019452,2]
[338432028,1726633856107,-556.88,0.00019452,2]
[338432029,1726633856118,-500.0,0.00019452,2]
[338432030,1726633856129,-500.0,0.00019452,2]
[338432031,1726633856140,-500.0,0.00019452,2]
[338432032,1726633856151,-3566.48,0.00019452,2]
[338432033,1726633856166,-500.0,0.00019452,2]
[338432034,1726633856176,-568.12,0.00019452,2]
[338432035,1726633856187,-977.04,0.00019452,2]
[338432036,1726633856198,-1054.0,0.00019452,2]
[338432037,1726633856207,-558.02,0.00019452,2]
[338432038,1726633856217,-500.0,0.00019452,2]
[338432039,1726633856227,-500.0,0.00019452,2]
[338432040,1726633856237,-500.0,0.00019452,2]
[338432041,1726633856247,-621.74,0.00019452,2]
[338432042,1726633856256,-500.0,0.00019452,2]
[338432043,1726633856266,-500.0,0.00019452,2]
[338432044,1726633856276,-500.0,0.00019452,2]
[338432045,1726633856287,-890.17,0.00019452,2]
[338432046,1726633856299,-500.0,0.00019452,2]
[338432047,1726633856310,-500.0,0.00019452,2]
[338432048,1726633856321,-500.0,0.00019452,2]
[338432049,1726633856331,-618.69018909,0.00019452,2]
[338432050,1726633856341,-500.0,0.00019452,2]
[338432051,1726633856354,-500.0,0.00019452,2]
[338432052,1726633856364,-1095.69,0.00019452,2]
[338432053,1726633856375,-500.0,0.00019452,2]
[338432054,1726633856385,-802.83,0.00019452,2]
[338432055,1726633856394,-2423.72,0.00019452,2]
[338432056,1726633856403,-569.39,0.00019452,2]
[338432057,1726633856413,-894.17,0.00019452,2]
[338432058,1726633856422,-511.0,0.00019452,2]
[338432059,1726633856432,-558.67,0.00019452,2]
[338432060,1726633856442,-500.0,0.00019452,2]
[338432061,1726633856452,-744.06,0.00019452,2]
[338432062,1726633856463,-1639.91,0.00019452,2]
[338432063,1726633856473,-501.27083728,0.00019452,2]
[338432064,1726633856485,-528.42,0.00019452,2]
[338432065,1726633856494,-500.0,0.00019452,2]
[338432066,1726633856504,-500.0,0.00019452,2]
[338432067,1726633856516,-151.0,0.00019452,2]
[338432068,1726633856528,-501.19218989,0.00019452,2]
[338432069,1726633856537,-151.0,0.00019452,2]
[338432070,1726633856548,-500.0,0.00019452,2]
[338432071,1726633856559,-500.0,0.00019452,2]
[338432072,1726633856570,-500.0,0.00019452,2]
[338432073,1726633856580,-500.0,0.00019452,2]
[338432074,1726633856592,-500.0,0.00019452,2]
[338432075,1726633856602,-151.0,0.00019452,2]
[338432076,1726633856613,-151.0,0.00019452,2]
[338432077,1726633856622,-500.0,0.00019452,2]
[338432078,1726633856633,-151.0,0.00019452,2]
[338432079,1726633856643,-500.0,0.00019452,2]
[338432080,1726633856655,-500.0,0.00019452,2]
[338432081,1726633856665,-2943.02,0.00019452,2]
[338432082,1726633856675,-528.41126972,0.00019452,2]
[338432083,1726633856685,-500.0,0.00019452,2]
[338432084,1726633856694,-500.0,0.00019452,2]
[338432085,1726633856706,-500.0,0.00019452,2]
[338432086,1726633856715,-3787.76,0.00019452,2]
[338432087,1726633856726,-500.0,0.00019452,2]
[338432088,1726633856736,-500.0,0.00019452,2]
[338432089,1726633856748,-500.0,0.00019452,2]
[338432090,1726633856759,-500.0,0.00019452,2]
[338432091,1726633856769,-500.0,0.00019452,2]
[338432092,1726633856780,-643.35,0.00019452,2]
[338432093,1726633856791,-944.56,0.00019452,2]
[338432094,1726633856801,-500.0,0.00019452,2]
[338432095,1726633856811,-500.0,0.00019452,2]
[338432096,1726633856822,-500.0,0.00019452,2]
[338432097,1726633856831,-1383.61,0.00019452,2]
[338432098,1726633856841,-500.0,0.00019452,2]
[338432099,1726633856852,-500.0,0.00019452,2]
[338432100,1726633856865,-500.0,0.00019452,2]
[338432101,1726633856876,-500.0,0.00019452,2]
[338432102,1726633856886,-500.0,0.00019452,2]
[338432103,1726633856897,-3535.4,0.00019452,2]
[338432104,1726633856907,-500.0,0.00019452,2]
[338432105,1726633856917,-763.72,0.00019452,2]
[338432106,1726633856927,-500.0,0.00019452,2]
[338432107,1726633856936,-500.0,0.00019452,2]
[338432108,1726633856945,-830.24,0.00019452,2]
[338432109,1726633856963,-500.0,0.00019452,2]
[338432110,1726633856972,-500.0,0.00019452,2]
[338432111,1726633856982,-500.0,0.00019452,2]
[338432112,1726633856991,-500.0,0.00019452,2]
[338432113,1726633857001,-882.54,0.00019452,2]
[338432114,1726633857010,-1264.82,0.00019452,2]
[338432115,1726633857020,-500.0,0.00019452,2]
[338432116,1726633857029,-1466.0,0.00019452,2]
[338432117,1726633857039,-587.97485686,0.00019452,2]
[338432118,1726633857049,-1277.79,0.00019452,2]
[338432119,1726633857059,-500.0,0.00019452,2]
[338432120,1726633857068,-151.0,0.00019452,2]
[338432121,1726633857078,-151.0,0.00019452,2]
[338432122,1726633857087,-151.0,0.00019452,2]
[338432123,1726633857097,-238.76,0.00019452,2]
[338432124,1726633857107,-1793.86,0.00019452,2]
[338432125,1726633857117,-508.1,0.00019452,2]
[338432126,1726633857126,-953.97,0.00019452,2]
[338432127,1726633857135,-1202.17,0.00019452,2]
[338432128,1726633857144,-500.0,0.00019452,2]
[338432129,1726633857154,-500.0,0.00019452,2]
[338432130,1726633857167,-500.0,0.00019452,2]
[338432131,1726633857178,-500.0,0.00019452,2]
[338432132,1726633857189,-1383.14,0.00019452,2]
[338432133,1726633857201,-500.0,0.00019452,2]
[338432134,1726633857211,-1578.9,0.00019452,2]
[338432135,1726633857222,-514.86769866,0.00019452,2]
[338432136,1726633857233,-500.0,0.00019452,2]
[338432137,1726633857243,-500.0,0.00019452,2]
[338432138,1726633857253,-500.0,0.00019452,2]
[338432139,1726633857263,-500.0,0.00019452,2]
[338432140,1726633857276,-474.45901079,0.00019452,2]
[338432141,1726633857288,-500.0,0.00019452,2]
[338432142,1726633857299,-500.0,0.00019452,2]
[338432143,1726633857310,-500.0,0.00019452,2]
[338432144,1726633857321,-500.0,0.00019452,2]
[338432145,1726633857332,-500.0,0.00019452,2]
[338432146,1726633857342,-500.0,0.00019452,2]
[338432147,1726633857353,-500.0,0.00019452,2]
[338432148,1726633857362,-500.0,0.00019452,2]
[338432149,1726633857373,-500.0,0.00019452,2]
[338432150,1726633857384,-1623.66,0.00019452,2]
[338432151,1726633857395,-500.0,0.00019452,2]
[338432152,1726633857405,-500.0,0.00019452,2]
[338432153,1726633857416,-1005.95,0.00019452,2]
[338432154,1726633857428,-790.73,0.00019452,2]
[338432155,1726633857438,-1589.032028,0.00019452,2]
[338432156,1726633857448,-1589.032028,0.00019452,2]
[338432157,1726633857458,-500.0,0.00019452,2]
[338432158,1726633857469,-1271.61,0.00019452,2]
[338432159,1726633857478,-1589.032028,0.00019452,2]
[338432160,1726633857488,-1589.032028,0.00019452,2]
[338432161,1726633857500,-801.67,0.00019452,2]
[338432162,1726633857511,-2517.23,0.00019452,2]
[338432163,1726633857522,-500.0,0.00019452,2]
[338432164,1726633857533,-2227.01,0.00019452,2]
[338432165,1726633857542,-500.0,0.00019452,2]
[338432166,1726633857552,-1326.0,0.00019452,2]
[338432167,1726633857562,-561.579837,0.00019452,2]
[338432168,1726633857573,-500.0,0.00019452,2]
[338432169,1726633857584,-151.0,0.00019452,2]
[338432170,1726633857594,-151.0,0.00019452,2]
[338432171,1726633857605,-151.0,0.00019452,2]
[338432172,1726633857615,-724.05,0.00019452,2]
[338432173,1726633857626,-540.27,0.00019452,2]
[338432174,1726633857638,-648.53680776,0.00019452,2]
[338432175,1726633857648,-785.46,0.00019452,2]
[338432176,1726633857658,-53.29461804,0.00019452,2]
[338432177,1726633858788,-151.0,0.00019178,2]
[338432178,1726633858799,-151.0,0.000192,2]
[338432179,1726633858809,-446.70538196,0.00019452,2]
[338432180,1726633858818,-489.21186568,0.00019452,2]
[338432181,1726633858829,-579.64813432,0.00019452,2]
[338432182,1726633858839,-826.77,0.00019452,2]
[338432183,1726633858849,-500.0,0.00019452,2]
[338432184,1726633858858,-151.0,0.00019452,2]
[338432185,1726633858867,-151.0,0.00019452,2]
[338432186,1726633858877,-151.0,0.00019452,2]
[338432187,1726633858886,-807.12,0.00019452,2]
[338432188,1726633858895,-500.0,0.00019452,2]
[338432189,1726633858904,-4131.18,0.00019452,2]
[338432190,1726633858913,-627.73,0.00019452,2]
[338432191,1726633858922,-931.71,0.00019452,2]
[338432192,1726633858931,-500.0,0.00019452,2]
[338432193,1726633858940,-866.08,0.00019452,2]
[338432194,1726633858952,-500.0,0.00019452,2]
[338432195,1726633858963,-511.81,0.00019452,2]
[338432196,1726633858973,-500.0,0.00019452,2]
[338432197,1726633858983,-500.0,0.00019452,2]
[338432198,1726633858994,-1223.12,0.00019452,2]
[338432199,1726633859004,-363.99161844,0.00019452,2]
[338432200,1726633859015,-500.0,0.00019452,2]
[338432201,1726633859024,-500.0,0.00019452,2]
[338432202,1726633859033,-500.0,0.00019452,2]
[338432203,1726633859043,-94.71510372,0.00019452,2]
[338432204,1726633887086,2300.0,0.00024,120]
[338432210,1726634257893,302.47,0.00023,60]
[338432211,1726634288588,302.0,0.00014012,2]
[338432227,1726634885718,1000.0,0.00024,120]
[338432286,1726635032385,-167.127282,0.00016861,2]
[338432288,1726635032397,-167.127282,0.00016934,2]
[338432290,1726635032407,-167.127282,0.00017007,2]
[338432292,1726635032417,-167.127282,0.0001708,2]
[338432294,1726635032426,-167.127282,0.00017154,2]
[338432295,1726635032435,-167.127282,0.00017227,2]
[338432297,1726635032446,-167.127282,0.000173,2]
[338432299,1726635032456,-167.127282,0.00017373,2]
[338432301,1726635032466,-167.127282,0.00017446,2]
[338432303,1726635032476,-167.127282,0.0001752,2]
[338432304,1726635032486,-167.127282,0.00017593,2]
[338432305,1726635032496,-167.127282,0.00017666,2]
[338432306,1726635032507,-167.127282,0.00017739,2]
[338432307,1726635032517,-300.0,0.00017777,2]
[338432308,1726635032527,-53.30431292,0.00017777,2]
[338432320,1726635038306,-246.69568708,0.00017777,2]
[338432321,1726635038315,-2610.39968593,0.00017778,2]
[338432322,1726635038326,-303.0,0.00017778,2]
[338432324,1726635038362,-738.46970076,0.00017778,2]
[338432326,1726635038374,-21248.13061331,0.00017778,2]
[338432327,1726635038384,-306.0,0.0001874,2]
[338432329,1726635038393,-153.0,0.0001874,2]
[338432330,1726635038402,-154.6184218,0.00018916,2]
[338432331,1726635038411,-153.0000001,0.00018916,2]
[338432332,1726635038420,-153.0,0.00018916,2]
[338432333,1726635038429,-153.0,0.00018916,2]
[338432334,1726635038438,-1884.10062918,0.00018965,2]
[338432335,1726635038448,-301.33975628,0.00019057,2]
[338432336,1726635038457,-1000.0,0.00019058,2]
[338432337,1726635038466,-301.33975628,0.00019061,2]
[338432338,1726635038475,-301.33975628,0.00019065,2]
[338432339,1726635038484,-301.33975628,0.00019069,2]
[338432340,1726635038494,-301.33975628,0.00019073,2]
[338432341,1726635038503,-500.0,0.00019133,2]
[338432342,1726635038513,-500.0,0.00019133,2]
[338432343,1726635038522,-500.0,0.00019133,2]
[338432344,1726635038531,-370.76474984,0.00019133,2]
[338432345,1726635038541,-500.0,0.00019133,2]
[338432346,1726635038550,-500.0,0.00019133,2]
[338432347,1726635038560,-500.0,0.00019133,2]
[338432348,1726635038569,-500.0,0.00019133,2]
[338432349,1726635038578,-500.0,0.00019133,2]
[338432350,1726635038589,-500.0,0.00019133,2]
[338432351,1726635038598,-500.0,0.00019133,2]
[338432352,1726635038608,-500.0,0.00019133,2]
[338432353,1726635038617,-554.54099805,0.00019133,2]
[338432354,1726635038626,-500.0,0.00019133,2]
[338432355,1726635038635,-500.0,0.00019133,2]
[338432356,1726635038645,-500.0,0.00019133,2]
[338432357,1726635038654,-500.0,0.00019133,2]
[338432358,1726635038663,-448.33571426,0.00019133,2]
[338432359,1726635038672,-500.0,0.00019133,2]
[338432360,1726635038681,-500.0,0.00019133,2]
[338432361,1726635038691,-500.0,0.00019133,2]
[338432362,1726635038700,-500.0,0.00019133,2]
[338432363,1726635038709,-500.0,0.00019133,2]
[338432364,1726635038718,-67486.5749353,0.00019135,3]
[338432365,1726635038728,-4545.20751643,0.00019135,3]
[338432366,1726635038736,-67486.5749353,0.00019147,3]
[338432367,1726635038745,-4545.20751643,0.00019147,3]
[338432368,1726635038754,-500.0,0.00019147,2]
[338432369,1726635038764,-500.0,0.00019147,2]
[338432370,1726635038773,-326.10011429,0.00019147,2]
[338432371,1726635038782,-500.0,0.00019147,2]
[338432372,1726635038792,-154.25969702,0.00019147,2]
[338432373,1726635038801,-500.0,0.00019147,2]
[338432374,1726635038810,-298.83656117,0.00019147,2]
[338432375,1726635038819,-318.09749541,0.00019147,2]
[338432376,1726635038829,-500.0,0.00019147,2]
[338432377,1726635038839,-500.0,0.00019147,2]
[338432378,1726635038848,-500.0,0.00019147,2]
[338432379,1726635038857,-500.0,0.00019147,2]
[338432380,1726635038867,-500.0,0.00019147,2]
[338432381,1726635038876,-500.0,0.00019147,2]
[338432382,1726635038885,-581.91966366,0.00019147,2]
[338432383,1726635038895,-500.0,0.00019147,2]
[338432384,1726635038904,-500.0,0.00019147,2]
[338432385,1726635038913,-500.0,0.00019147,2]
[338432386,1726635038923,-307.34376456,0.00019147,2]
[338432387,1726635038932,-134973.149871,0.00019148,3]
[338432388,1726635038941,-9090.41503286,0.00019148,3]
[338432389,1726635038950,-67486.5749353,0.00019148,3]
[338432390,1726635038964,-27271.2450986,0.00019148,3]
[338432391,1726635038974,-4545.20751643,0.00019168,3]
[338432392,1726635038983,-40906.8676479,0.00019168,3]
[338432393,1726635038992,-500.76551568,0.00019173,2]
[338432394,1726635039001,-360.07202762,0.00019173,2]
[338432395,1726635039010,-159.9027995,0.00019173,2]
[338432396,1726635039020,-200.91528279,0.00019173,2]
[338432397,1726635039029,-500.50555096,0.00019173,2]
[338432398,1726635039038,-543.61726829,0.00019173,2]
[338432399,1726635039048,-500.4431137,0.00019173,2]
[338432400,1726635039058,-513.32263156,0.00019173,2]
[338432401,1726635039068,-500.35776297,0.00019173,2]
[338432402,1726635039077,-254.69698023,0.00019173,2]
[338432403,1726635039088,-522.25634702,0.00019173,2]
[338432404,1726635039096,-500.49163467,0.00019173,2]
[338432405,1726635039105,-500.0,0.00019173,2]
[338432406,1726635039115,-500.0,0.00019173,2]
[338432407,1726635039124,-538.72167419,0.00019173,2]
[338432408,1726635039136,-160.04022025,0.00019173,2]
[338432409,1726635039149,-500.0,0.00019173,2]
[338432410,1726635039159,-591.02249132,0.00019173,2]
[338432411,1726635039169,-500.78291911,0.00019173,2]
[338432412,1726635039182,-500.37104256,0.00019173,2]
[338432413,1726635039191,-500.0,0.00019173,2]
[338432414,1726635039202,-500.0,0.00019173,2]
[338432415,1726635039212,-500.99242898,0.00019173,2]
[338432416,1726635039223,-500.48891412,0.00019173,2]
[338432417,1726635039235,-500.0,0.00019173,2]
[338432418,1726635039246,-501.02580175,0.00019173,2]
[338432419,1726635039257,-160.11335754,0.00019173,2]
[338432420,1726635039267,-500.0,0.00019173,2]
[338432421,1726635039278,-500.38098052,0.00019173,2]
[338432422,1726635039287,-500.92865773,0.00019173,2]
[338432423,1726635039298,-20065.35768176,0.00019178,5]
[338432424,1726635039310,-503.20128275,0.00019178,2]
[338432425,1726635039320,-500.0,0.00019178,2]
[338432426,1726635039330,-500.0,0.00019178,2]
[338432427,1726635039343,-500.0,0.00019178,2]
[338432428,1726635039352,-1000.0,0.00019178,2]
[338432429,1726635039362,-500.0,0.00019178,2]
[338432430,1726635039372,-500.0,0.00019178,2]
[338432431,1726635039381,-154.29237224,0.00019178,2]
[338432432,1726635039393,-500.0,0.00019178,2]
[338432433,1726635039403,-500.0,0.00019178,2]
[338432434,1726635039414,-500.0,0.00019178,2]
[338432435,1726635039425,-500.0,0.00019178,2]
[338432436,1726635039436,-500.82107924,0.00019178,2]
[338432437,1726635039445,-500.0,0.00019178,2]
[338432438,1726635039455,-500.0,0.00019178,2]
[338432439,1726635039464,-500.0,0.00019178,2]
[338432440,1726635039475,-500.0,0.00019178,2]
[338432441,1726635039486,-500.0,0.00019178,2]
[338432442,1726635039496,-500.0,0.00019178,2]
[338432443,1726635039507,-500.0,0.00019178,2]
[338432444,1726635039517,-500.0,0.00019178,2]
[338432445,1726635039528,-500.37505608,0.00019178,2]
[338432446,1726635039538,-500.0,0.00019178,2]
[338432447,1726635039548,-500.0,0.00019178,2]
[338432448,1726635039557,-500.0,0.00019178,2]
[338432449,1726635039567,-500.0,0.00019178,2]
[338432450,1726635039577,-500.0,0.00019178,2]
[338432451,1726635039588,-532.31977263,0.00019178,2]
[338432452,1726635039597,-202.51131607,0.00019178,2]
[338432453,1726635039606,-500.0,0.00019178,2]
[338432454,1726635039615,-500.0,0.00019178,2]